[Event "Late-Titled-Tuesday-Blitz-August-29-2023"]
[Site "Chess.com"]
[Date "2023.08.29"]
[Round "4"]
[White "AndreiITrifan"]
[Black "Karacsonyi_Gellert"]
[Result "1/2-1/2"]
[WhiteElo "2569"]
[BlackElo "2843"]
[TimeControl "180+1"]
[EndTime "14:40:33 PDT"]
[Termination "Game drawn - insufficient material"]

1. Nf3 {[%clk 0:03:00]} 1... Nf6 {[%clk 0:02:59.5]} 2. b3 {[%clk 0:02:59.6]}
2... d5 {[%clk 0:02:59.3]} 3. Bb2 {[%clk 0:03:00]} 3... e6 {[%clk 0:02:58.6]} 4.
e3 {[%clk 0:03:00.4]} 4... Be7 {[%clk 0:02:58.5]} 5. Be2 {[%clk 0:03:00.9]} 5...
O-O {[%clk 0:02:59.2]} 6. O-O {[%clk 0:03:01.4]} 6... b6 {[%clk 0:02:59.9]} 7.
d4 {[%clk 0:02:58.5]} 7... Bb7 {[%clk 0:03:00.2]} 8. c4 {[%clk 0:02:58.6]} 8...
c5 {[%clk 0:03:00.6]} 9. Nc3 {[%clk 0:02:58.5]} 9... cxd4 {[%clk 0:02:58.6]} 10.
Nxd4 {[%clk 0:02:59.4]} 10... dxc4 {[%clk 0:02:56.1]} 11. Bxc4 {[%clk
0:02:57.3]} 11... Nc6 {[%clk 0:02:56.1]} 12. Nxc6 {[%clk 0:02:50.4]} 12... Bxc6
{[%clk 0:02:57]} 13. Qxd8 {[%clk 0:02:49.9]} 13... Rfxd8 {[%clk 0:02:57.9]} 14.
Rfd1 {[%clk 0:02:50.3]} 14... Kf8 {[%clk 0:02:49.6]} 15. Kf1 {[%clk 0:02:48.6]}
15... Rxd1+ {[%clk 0:02:42.6]} 16. Rxd1 {[%clk 0:02:47.7]} 16... Rd8 {[%clk
0:02:43.5]} 17. Rxd8+ {[%clk 0:02:42.4]} 17... Bxd8 {[%clk 0:02:44.4]} 18. Bb5
{[%clk 0:02:21.9]} 18... Bxb5+ {[%clk 0:02:37.3]} 19. Nxb5 {[%clk 0:02:22.8]}
19... a6 {[%clk 0:02:37.5]} 20. Nd4 {[%clk 0:02:22.4]} 20... Bc7 {[%clk
0:02:32.9]} 21. Ke2 {[%clk 0:02:16.3]} 21... Ke8 {[%clk 0:02:31.7]} 22. h3
{[%clk 0:02:13.9]} 22... h5 {[%clk 0:02:31.9]} 23. Kd3 {[%clk 0:02:03.5]} 23...
Kd7 {[%clk 0:02:31.7]} 24. Ne2 {[%clk 0:02:02.6]} 24... Ne8 {[%clk 0:02:26.7]}
25. a4 {[%clk 0:01:58.3]} 25... g6 {[%clk 0:02:26.4]} 26. g4 {[%clk 0:01:53]}
26... hxg4 {[%clk 0:02:23.6]} 27. hxg4 {[%clk 0:01:53.9]} 27... Nd6 {[%clk
0:02:21]} 28. f3 {[%clk 0:01:49.7]} 28... Nb7 {[%clk 0:02:20.9]} 29. Kc4 {[%clk
0:01:42.6]} 29... Na5+ {[%clk 0:02:15.3]} 30. Kc3 {[%clk 0:01:36.2]} 30... Be5+
{[%clk 0:02:15.4]} 31. Nd4 {[%clk 0:01:36.4]} 31... Bxd4+ {[%clk 0:02:04.7]} 32.
exd4 {[%clk 0:01:37.3]} 32... Kc6 {[%clk 0:02:05.4]} 33. Bc1 {[%clk 0:01:27.1]}
33... Kd5 {[%clk 0:02:02.9]} 34. Bf4 {[%clk 0:01:18.9]} 34... Nc6 {[%clk
0:02:02.9]} 35. Be3 {[%clk 0:01:05.7]} 35... f5 {[%clk 0:02:03.3]} 36. Bf2
{[%clk 0:00:58.4]} 36... Ne7 {[%clk 0:01:56.8]} 37. Kd3 {[%clk 0:00:51.7]} 37...
Ng8 {[%clk 0:01:51.7]} 38. gxf5 {[%clk 0:00:41.5]} 38... exf5 {[%clk 0:01:39.6]}
39. Bh4 {[%clk 0:00:41.2]} 39... Nh6 {[%clk 0:01:39.6]} 40. Ke3 {[%clk
0:00:36.8]} 40... Nf7 {[%clk 0:01:37.5]} 41. Bf6 {[%clk 0:00:37]} 41... g5
{[%clk 0:01:25.5]} 42. Bg7 {[%clk 0:00:35.3]} 42... Nd8 {[%clk 0:01:22.5]} 43.
Be5 {[%clk 0:00:20.3]} 43... Ne6 {[%clk 0:00:59.5]} 44. Bf6 {[%clk 0:00:20.6]}
44... g4 {[%clk 0:00:54.5]} 45. fxg4 {[%clk 0:00:21.5]} 45... fxg4 {[%clk
0:00:55.1]} 46. Be5 {[%clk 0:00:22.2]} 46... b5 {[%clk 0:00:47.8]} 47. axb5
{[%clk 0:00:22.4]} 47... axb5 {[%clk 0:00:48.4]} 48. Kd3 {[%clk 0:00:20.6]}
48... Ng5 {[%clk 0:00:44.5]} 49. Ke3 {[%clk 0:00:19.3]} 49... Ne6 {[%clk
0:00:30.3]} 50. Kd3 {[%clk 0:00:17.4]} 50... Nf8 {[%clk 0:00:31]} 51. Ke3 {[%clk
0:00:16.5]} 51... Ng6 {[%clk 0:00:31.6]} 52. Bg7 {[%clk 0:00:15.1]} 52... Ke6
{[%clk 0:00:32.2]} 53. Ke4 {[%clk 0:00:14.9]} 53... Ne7 {[%clk 0:00:24.5]} 54.
Kf4 {[%clk 0:00:13.2]} 54... g3 {[%clk 0:00:25.1]} 55. Kf3 {[%clk 0:00:12.1]}
55... Nf5 {[%clk 0:00:22.8]} 56. Be5 {[%clk 0:00:12.4]} 56... Kd5 {[%clk
0:00:23.4]} 57. Bf6 {[%clk 0:00:10.8]} 57... Nxd4+ {[%clk 0:00:17.8]} 58. Kxg3
{[%clk 0:00:11.7]} 58... Nxb3 {[%clk 0:00:17.7]} 59. Kf2 {[%clk 0:00:12.6]}
59... Kc4 {[%clk 0:00:11.2]} 60. Ke2 {[%clk 0:00:13.1]} 60... Nc5 {[%clk
0:00:10.3]} 61. Kd1 {[%clk 0:00:12.8]} 61... Kb3 {[%clk 0:00:10.9]} 62. Be7
{[%clk 0:00:12.2]} 62... Ne4 {[%clk 0:00:10.7]} 63. Bf8 {[%clk 0:00:12.1]} 63...
Nc3+ {[%clk 0:00:11]} 64. Kd2 {[%clk 0:00:12.9]} 64... Nd5 {[%clk 0:00:11.9]}
65. Kd3 {[%clk 0:00:13.6]} 65... Nc7 {[%clk 0:00:10.8]} 66. Bc5 {[%clk
0:00:13.7]} 66... Ne6 {[%clk 0:00:10.6]} 67. Bd6 {[%clk 0:00:14.1]} 67... Nd8
{[%clk 0:00:10.8]} 68. Kd4 {[%clk 0:00:14.2]} 68... Ne6+ {[%clk 0:00:08.7]} 69.
Kd5 {[%clk 0:00:14.5]} 69... Ng5 {[%clk 0:00:08.4]} 70. Kc6 {[%clk 0:00:14.7]}
70... Kc4 {[%clk 0:00:08.3]} 71. Be7 {[%clk 0:00:13.5]} 71... Ne4 {[%clk
0:00:09.2]} 72. Kb6 {[%clk 0:00:14.1]} 72... Nc3 {[%clk 0:00:08.9]} 73. Bf8
{[%clk 0:00:14.6]} 73... Ne2 {[%clk 0:00:08.6]} 74. Kc6 {[%clk 0:00:15.1]} 74...
Nf4 {[%clk 0:00:08.3]} 75. Be7 {[%clk 0:00:15.5]} 75... Nd5 {[%clk 0:00:08.9]}
76. Bf8 {[%clk 0:00:15.8]} 76... Nf6 {[%clk 0:00:08.7]} 77. Bd6 {[%clk 0:00:16]}
77... Ng4 {[%clk 0:00:09.4]} 78. Be7 {[%clk 0:00:16.4]} 78... Ne5+ {[%clk
0:00:10]} 79. Kb7 {[%clk 0:00:15.6]} 79... Nd7 {[%clk 0:00:09.7]} 80. Kc6 {[%clk
0:00:16.1]} 80... Ne5+ {[%clk 0:00:08.9]} 81. Kb7 {[%clk 0:00:16.3]} 81... Ng6
{[%clk 0:00:08.4]} 82. Bd6 {[%clk 0:00:16.5]} 82... Nh4 {[%clk 0:00:08.1]} 83.
Kc6 {[%clk 0:00:16.6]} 83... Nf5 {[%clk 0:00:08.1]} 84. Bf8 {[%clk 0:00:17.2]}
84... Nd4+ {[%clk 0:00:06.6]} 85. Kb7 {[%clk 0:00:17.5]} 85... Ne6 {[%clk
0:00:07.5]} 86. Bd6 {[%clk 0:00:17]} 86... Nc5+ {[%clk 0:00:07.1]} 87. Kc6
{[%clk 0:00:17.6]} 87... b4 {[%clk 0:00:04.7]} 88. Bxc5 {[%clk 0:00:17.9]} 88...
b3 {[%clk 0:00:05.6]} 89. Ba3 {[%clk 0:00:18.8]} 89... b2 {[%clk 0:00:06.2]} 90.
Bxb2 {[%clk 0:00:19]} 1/2-1/2

[Event "Late-Titled-Tuesday-Blitz-August-29-2023"]
[Site "Chess.com"]
[Date "2023.08.29"]
[Round "5"]
[White "Iball95"]
[Black "ilya2700"]
[Result "0-1"]
[WhiteElo "2726"]
[BlackElo "2123"]
[TimeControl "180+1"]
[EndTime "14:49:26 PDT"]
[Termination "ilya2700 won by checkmate"]

1. e4 {[%clk 0:03:00]} 1... c5 {[%clk 0:02:58.2]} 2. Nf3 {[%clk 0:02:59.9]} 2...
e6 {[%clk 0:02:58.7]} 3. Nc3 {[%clk 0:03:00.2]} 3... Nc6 {[%clk 0:02:58.2]} 4.
d4 {[%clk 0:03:00.2]} 4... cxd4 {[%clk 0:02:59.1]} 5. Nxd4 {[%clk 0:03:00.3]}
5... Qc7 {[%clk 0:02:59.8]} 6. Nxc6 {[%clk 0:03:00.3]} 6... Qxc6 {[%clk
0:02:56.1]} 7. Bd3 {[%clk 0:02:52.6]} 7... a6 {[%clk 0:02:55.5]} 8. O-O {[%clk
0:02:52.9]} 8... b5 {[%clk 0:02:49.4]} 9. Re1 {[%clk 0:02:52.8]} 9... Bb7 {[%clk
0:02:49.1]} 10. Bf4 {[%clk 0:02:52.6]} 10... Ne7 {[%clk 0:02:36.5]} 11. Qf3
{[%clk 0:02:48]} 11... b4 {[%clk 0:02:28.1]} 12. Ne2 {[%clk 0:02:45.7]} 12...
Ng6 {[%clk 0:02:20.7]} 13. Bg3 {[%clk 0:02:45.5]} 13... Bc5 {[%clk 0:02:17.3]}
14. Rad1 {[%clk 0:02:39.6]} 14... O-O {[%clk 0:02:16.7]} 15. Qh5 {[%clk
0:02:37.6]} 15... f5 {[%clk 0:02:12]} 16. exf5 {[%clk 0:02:36.7]} 16... Qxg2#
{[%clk 0:02:11.6]} 0-1

[Event "Late-Titled-Tuesday-Blitz-August-29-2023"]
[Site "Chess.com"]
[Date "2023.08.29"]
[Round "5"]
[White "koziororo"]
[Black "colegiodemadrid"]
[Result "0-1"]
[WhiteElo "2574"]
[BlackElo "2454"]
[TimeControl "180+1"]
[EndTime "14:49:40 PDT"]
[Termination "colegiodemadrid won by checkmate"]

1. e4 {[%clk 0:02:35.3]} 1... e5 {[%clk 0:02:59]} 2. Nf3 {[%clk 0:02:35.4]} 2...
Nc6 {[%clk 0:02:58.9]} 3. Bc4 {[%clk 0:02:35.5]} 3... Bc5 {[%clk 0:02:58]} 4. b4
{[%clk 0:02:35.8]} 4... Bxb4 {[%clk 0:02:57.8]} 5. c3 {[%clk 0:02:36.5]} 5...
Ba5 {[%clk 0:02:58.3]} 6. d4 {[%clk 0:02:37.1]} 6... d6 {[%clk 0:02:58.2]} 7.
Qb3 {[%clk 0:02:36.8]} 7... Qd7 {[%clk 0:02:57.9]} 8. O-O {[%clk 0:02:35.3]}
8... Bb6 {[%clk 0:02:57.2]} 9. Rd1 {[%clk 0:02:35]} 9... Na5 {[%clk 0:02:55.8]}
10. Qb4 {[%clk 0:02:33.6]} 10... Nxc4 {[%clk 0:02:52.4]} 11. Qxc4 {[%clk
0:02:34.5]} 11... exd4 {[%clk 0:02:52.3]} 12. cxd4 {[%clk 0:02:35.4]} 12... Qc6
{[%clk 0:02:48.2]} 13. Qb3 {[%clk 0:02:33.5]} 13... Bg4 {[%clk 0:02:43]} 14. Nc3
{[%clk 0:02:27.9]} 14... Ne7 {[%clk 0:02:41.5]} 15. Bb2 {[%clk 0:02:26.7]} 15...
Bxf3 {[%clk 0:02:37.8]} 16. gxf3 {[%clk 0:02:27.6]} 16... O-O {[%clk 0:02:37.3]}
17. Rac1 {[%clk 0:02:27.6]} 17... Qd7 {[%clk 0:02:36.9]} 18. Ne2 {[%clk
0:02:27]} 18... Qh3 {[%clk 0:02:34.6]} 19. Ng3 {[%clk 0:02:26]} 19... Ng6 {[%clk
0:02:32.8]} 20. Qd3 {[%clk 0:02:23.9]} 20... Nh4 {[%clk 0:02:30.6]} 21. Qf1
{[%clk 0:02:17.8]} 21... Nxf3+ {[%clk 0:02:29.5]} 22. Kh1 {[%clk 0:02:18.5]}
22... Qxh2# {[%clk 0:02:29.9]} 0-1

[Event "Late-Titled-Tuesday-Blitz-August-29-2023"]
[Site "Chess.com"]
[Date "2023.08.29"]
[Round "5"]
[White "Fan_Of_Chucky"]
[Black "giomar27"]
[Result "1-0"]
[WhiteElo "2517"]
[BlackElo "2271"]
[TimeControl "180+1"]
[EndTime "14:49:57 PDT"]
[Termination "Fan_Of_Chucky won by resignation"]

1. d4 {[%clk 0:02:56.2]} 1... Nf6 {[%clk 0:02:59.9]} 2. c4 {[%clk 0:02:57.1]}
2... c5 {[%clk 0:02:59.4]} 3. d5 {[%clk 0:02:56.5]} 3... b5 {[%clk 0:03:00]} 4.
cxb5 {[%clk 0:02:57.4]} 4... a6 {[%clk 0:03:00.4]} 5. e3 {[%clk 0:02:58.3]} 5...
g6 {[%clk 0:02:59.5]} 6. Nc3 {[%clk 0:02:58.4]} 6... Bg7 {[%clk 0:03:00.1]} 7.
a4 {[%clk 0:02:56.7]} 7... O-O {[%clk 0:02:59.9]} 8. e4 {[%clk 0:02:55]} 8...
Bb7 {[%clk 0:02:57.1]} 9. Nf3 {[%clk 0:02:54]} 9... e6 {[%clk 0:02:57.5]} 10.
Bc4 {[%clk 0:02:45.8]} 10... exd5 {[%clk 0:02:55.7]} 11. exd5 {[%clk 0:02:46.4]}
11... Re8+ {[%clk 0:02:52.8]} 12. Be3 {[%clk 0:02:46.8]} 12... d6 {[%clk
0:02:52.6]} 13. O-O {[%clk 0:02:44.2]} 13... Nbd7 {[%clk 0:02:52.4]} 14. Bf4
{[%clk 0:02:37.5]} 14... Nb6 {[%clk 0:02:51.9]} 15. b3 {[%clk 0:02:34]} 15...
Nh5 {[%clk 0:02:47.4]} 16. Bd2 {[%clk 0:02:31.3]} 16... Nf6 {[%clk 0:02:41.1]}
17. Bg5 {[%clk 0:02:19.7]} 17... h6 {[%clk 0:02:41.1]} 18. Bxf6 {[%clk
0:02:17.7]} 18... Qxf6 {[%clk 0:02:40.8]} 19. Rc1 {[%clk 0:02:13.5]} 19... g5
{[%clk 0:02:36.2]} 20. h3 {[%clk 0:02:08.9]} 20... Re4 {[%clk 0:02:28.4]} 21.
Nxe4 {[%clk 0:02:06.5]} 1-0

[Event "Late-Titled-Tuesday-Blitz-August-29-2023"]
[Site "Chess.com"]
[Date "2023.08.29"]
[Round "5"]
[White "Lion_DL"]
[Black "Dzidzik2203"]
[Result "1/2-1/2"]
[WhiteElo "2499"]
[BlackElo "2350"]
[TimeControl "180+1"]
[EndTime "14:50:51 PDT"]
[Termination "Game drawn by agreement"]

1. d4 {[%clk 0:03:00.9]} 1... Nf6 {[%clk 0:02:59.8]} 2. c4 {[%clk 0:03:00.8]}
2... g6 {[%clk 0:03:00.2]} 3. h4 {[%clk 0:03:00.7]} 3... c5 {[%clk 0:02:58.4]}
4. d5 {[%clk 0:03:00.8]} 4... b5 {[%clk 0:02:57.8]} 5. cxb5 {[%clk 0:03:01.5]}
5... a6 {[%clk 0:02:58.5]} 6. e3 {[%clk 0:03:01.3]} 6... axb5 {[%clk 0:02:53.8]}
7. Bxb5 {[%clk 0:03:02.2]} 7... Bg7 {[%clk 0:02:53.9]} 8. Nc3 {[%clk 0:03:01.2]}
8... O-O {[%clk 0:02:53.3]} 9. Nf3 {[%clk 0:02:58.7]} 9... Ba6 {[%clk
0:02:52.9]} 10. O-O {[%clk 0:02:53.3]} 10... d6 {[%clk 0:02:49.2]} 11. a4 {[%clk
0:02:51.9]} 11... Bxb5 {[%clk 0:02:49.5]} 12. Nxb5 {[%clk 0:02:51.6]} 12... Na6
{[%clk 0:02:50]} 13. Re1 {[%clk 0:02:35.2]} 13... Ne4 {[%clk 0:02:48.3]} 14. Nd2
{[%clk 0:02:32.3]} 14... Nxd2 {[%clk 0:02:46.4]} 15. Qxd2 {[%clk 0:02:33.2]}
15... Nc7 {[%clk 0:02:46.4]} 16. Nxc7 {[%clk 0:02:25.9]} 16... Qxc7 {[%clk
0:02:47.3]} 17. Ra3 {[%clk 0:02:25.7]} 17... Rfb8 {[%clk 0:02:45.8]} 18. b3
{[%clk 0:02:26.1]} 18... h5 {[%clk 0:02:41.4]} 19. Bb2 {[%clk 0:02:25.2]} 19...
Bxb2 {[%clk 0:02:39.2]} 20. Qxb2 {[%clk 0:02:26.1]} 20... c4 {[%clk 0:02:35.4]}
21. Qc3 {[%clk 0:02:21.1]} 21... Qc5 {[%clk 0:02:31.7]} 22. bxc4 {[%clk
0:02:19.4]} 22... Rb4 {[%clk 0:02:31.5]} 23. Rc1 {[%clk 0:02:13]} 23... Raxa4
{[%clk 0:02:28.7]} 24. Rxa4 {[%clk 0:02:13.9]} 24... Rxa4 {[%clk 0:02:28.7]} 25.
Qd4 {[%clk 0:02:06.7]} 25... Qb4 {[%clk 0:02:21.2]} 26. c5 {[%clk 0:01:55.9]}
26... dxc5 {[%clk 0:02:20.8]} 27. Qxc5 {[%clk 0:01:54.6]} 27... Qxc5 {[%clk
0:02:21]} 28. Rxc5 {[%clk 0:01:54.9]} 28... Rxh4 {[%clk 0:02:21.5]} 29. f4
{[%clk 0:01:52.5]} 29... Rg4 {[%clk 0:02:17.6]} 30. Kf2 {[%clk 0:01:49.7]} 30...
g5 {[%clk 0:02:16.5]} 1/2-1/2

[Event "Late-Titled-Tuesday-Blitz-August-29-2023"]
[Site "Chess.com"]
[Date "2023.08.29"]
[Round "5"]
[White "Elshan1985"]
[Black "dorpato"]
[Result "1-0"]
[WhiteElo "2787"]
[BlackElo "2012"]
[TimeControl "180+1"]
[EndTime "14:51:38 PDT"]
[Termination "Elshan1985 won by checkmate"]

1. Nf3 {[%clk 0:03:00.5]} 1... c5 {[%clk 0:02:59.4]} 2. e4 {[%clk 0:03:00.3]}
2... d6 {[%clk 0:02:58.2]} 3. Bb5+ {[%clk 0:03:00.2]} 3... Bd7 {[%clk 0:02:58]}
4. c4 {[%clk 0:02:59.9]} 4... Bxb5 {[%clk 0:02:57.7]} 5. cxb5 {[%clk 0:03:00.8]}
5... Qd7 {[%clk 0:02:57]} 6. Qe2 {[%clk 0:03:01]} 6... Nf6 {[%clk 0:02:54.9]} 7.
O-O {[%clk 0:03:00.2]} 7... g6 {[%clk 0:02:53.3]} 8. d4 {[%clk 0:02:59.4]} 8...
cxd4 {[%clk 0:02:53]} 9. Nxd4 {[%clk 0:03:00.3]} 9... Bg7 {[%clk 0:02:52.7]} 10.
Rd1 {[%clk 0:03:01]} 10... O-O {[%clk 0:02:51.6]} 11. Nc3 {[%clk 0:03:01.7]}
11... a6 {[%clk 0:02:47.3]} 12. Bg5 {[%clk 0:02:57.2]} 12... axb5 {[%clk
0:02:45]} 13. Ndxb5 {[%clk 0:02:57.9]} 13... Nc6 {[%clk 0:02:44.9]} 14. Rac1
{[%clk 0:02:53.2]} 14... Rfc8 {[%clk 0:02:34.5]} 15. h3 {[%clk 0:02:52.2]} 15...
Ne5 {[%clk 0:02:30.4]} 16. f4 {[%clk 0:02:49.9]} 16... Nc4 {[%clk 0:02:27.7]}
17. e5 {[%clk 0:02:49]} 17... Ne8 {[%clk 0:02:15.6]} 18. b3 {[%clk 0:02:49.1]}
18... Na5 {[%clk 0:01:46.4]} 19. Nd5 {[%clk 0:02:44]} 19... f6 {[%clk
0:01:32.5]} 20. Nb6 {[%clk 0:02:34]} 20... Qd8 {[%clk 0:01:25.9]} 21. Nxc8
{[%clk 0:02:27.6]} 21... fxg5 {[%clk 0:01:19.8]} 22. exd6 {[%clk 0:02:27.7]}
22... Nxd6 {[%clk 0:01:13.8]} 23. Nxe7+ {[%clk 0:02:26.6]} 23... Kh8 {[%clk
0:01:13.1]} 24. Nxd6 {[%clk 0:02:26.6]} 24... Qb6+ {[%clk 0:01:05.3]} 25. Kh1
{[%clk 0:02:26.2]} 25... Rf8 {[%clk 0:01:04.5]} 26. Rc8 {[%clk 0:02:22.9]} 26...
h5 {[%clk 0:00:49.3]} 27. Nxg6+ {[%clk 0:02:21.7]} 27... Kh7 {[%clk 0:00:49.5]}
28. Qxh5+ {[%clk 0:02:21.7]} 28... Bh6 {[%clk 0:00:48.2]} 29. Nxf8+ {[%clk
0:02:22.3]} 29... Kg7 {[%clk 0:00:45.9]} 30. Qf7+ {[%clk 0:02:22.5]} 30... Kh8
{[%clk 0:00:45.6]} 31. Qh7# {[%clk 0:02:22.4]} 1-0

[Event "Late-Titled-Tuesday-Blitz-August-29-2023"]
[Site "Chess.com"]
[Date "2023.08.29"]
[Round "5"]
[White "ajgreen"]
[Black "Veleamater"]
[Result "1-0"]
[WhiteElo "2420"]
[BlackElo "2288"]
[TimeControl "180+1"]
[EndTime "14:51:39 PDT"]
[Termination "ajgreen won by resignation"]

1. e4 {[%clk 0:03:00.9]} 1... d6 {[%clk 0:02:59.8]} 2. d4 {[%clk 0:03:00.8]}
2... g6 {[%clk 0:02:59.3]} 3. Nc3 {[%clk 0:03:01.2]} 3... Bg7 {[%clk 0:02:59.7]}
4. Be3 {[%clk 0:03:01.9]} 4... Nf6 {[%clk 0:03:00.3]} 5. f3 {[%clk 0:03:02.5]}
5... O-O {[%clk 0:03:00.9]} 6. Qd2 {[%clk 0:03:03.2]} 6... Nc6 {[%clk
0:03:00.8]} 7. O-O-O {[%clk 0:03:03.7]} 7... h5 {[%clk 0:03:00.5]} 8. Bh6 {[%clk
0:03:02]} 8... Kh7 {[%clk 0:02:59.1]} 9. Bxg7 {[%clk 0:03:02.2]} 9... Kxg7
{[%clk 0:02:59.7]} 10. Nge2 {[%clk 0:03:01.1]} 10... a6 {[%clk 0:02:59.6]} 11.
g3 {[%clk 0:02:58.1]} 11... b5 {[%clk 0:02:57.5]} 12. a3 {[%clk 0:02:57]} 12...
Rh8 {[%clk 0:02:57]} 13. Bg2 {[%clk 0:02:57]} 13... e5 {[%clk 0:02:54.6]} 14. h4
{[%clk 0:02:54.5]} 14... Rb8 {[%clk 0:02:50.2]} 15. Nd5 {[%clk 0:02:47.2]} 15...
exd4 {[%clk 0:02:46.8]} 16. Nxd4 {[%clk 0:02:43.6]} 16... Ne5 {[%clk 0:02:45.8]}
17. f4 {[%clk 0:02:40.5]} 17... Nc4 {[%clk 0:02:43.2]} 18. Qc3 {[%clk
0:02:38.3]} 18... c5 {[%clk 0:02:19]} 19. Nc6 {[%clk 0:02:34.9]} 19... b4 {[%clk
0:02:00.7]} 20. Qxc4 {[%clk 0:02:24.5]} 20... Nxd5 {[%clk 0:01:51.7]} 21. Nxd8
{[%clk 0:02:20.3]} 21... bxa3 {[%clk 0:01:42]} 22. Nc6 {[%clk 0:01:52.3]} 22...
axb2+ {[%clk 0:01:30.5]} 23. Kb1 {[%clk 0:01:50.6]} 23... Nb6 {[%clk 0:01:22.8]}
24. Qc3+ {[%clk 0:01:48.8]} 24... f6 {[%clk 0:01:20.4]} 25. Nxb8 {[%clk
0:01:49.1]} 25... Be6 {[%clk 0:01:18.5]} 26. Rxd6 {[%clk 0:01:48.5]} 26... Rxb8
{[%clk 0:01:15.8]} 27. Rxe6 {[%clk 0:01:44.4]} 1-0

[Event "Late-Titled-Tuesday-Blitz-August-29-2023"]
[Site "Chess.com"]
[Date "2023.08.29"]
[Round "5"]
[White "Akhayan"]
[Black "Kleyton_Lima"]
[Result "0-1"]
[WhiteElo "2298"]
[BlackElo "2524"]
[TimeControl "180+1"]
[EndTime "14:51:40 PDT"]
[Termination "Kleyton_Lima won by resignation"]

1. e4 {[%clk 0:02:57]} 1... c5 {[%clk 0:02:59.8]} 2. Nf3 {[%clk 0:02:56.7]} 2...
d6 {[%clk 0:03:00.4]} 3. d4 {[%clk 0:02:56.6]} 3... cxd4 {[%clk 0:03:01.3]} 4.
Nxd4 {[%clk 0:02:56.9]} 4... Nf6 {[%clk 0:03:01.8]} 5. Nc3 {[%clk 0:02:55]} 5...
a6 {[%clk 0:03:02.3]} 6. Bc4 {[%clk 0:02:55.1]} 6... e6 {[%clk 0:03:01.4]} 7.
Bb3 {[%clk 0:02:55.6]} 7... Nc6 {[%clk 0:03:00.9]} 8. Be3 {[%clk 0:02:55.1]}
8... Be7 {[%clk 0:03:01.1]} 9. Qe2 {[%clk 0:02:55.6]} 9... O-O {[%clk
0:03:01.2]} 10. O-O-O {[%clk 0:02:56.1]} 10... Nxd4 {[%clk 0:03:00.9]} 11. Bxd4
{[%clk 0:02:55.8]} 11... b5 {[%clk 0:03:01.2]} 12. g4 {[%clk 0:02:55.1]} 12...
Bb7 {[%clk 0:02:59]} 13. g5 {[%clk 0:02:50.9]} 13... Nd7 {[%clk 0:02:57.5]} 14.
Rhg1 {[%clk 0:02:42.7]} 14... b4 {[%clk 0:02:57.4]} 15. Nd5 {[%clk 0:02:42.1]}
15... exd5 {[%clk 0:02:30.1]} 16. exd5 {[%clk 0:02:40.3]} 16... Bxg5+ {[%clk
0:02:30.4]} 17. Kb1 {[%clk 0:02:39.5]} 17... Bf6 {[%clk 0:02:31.3]} 18. Rg4
{[%clk 0:01:27.1]} 18... Bxd4 {[%clk 0:02:23.8]} 19. Rdxd4 {[%clk 0:01:25.1]}
19... Re8 {[%clk 0:02:20.7]} 20. Qd2 {[%clk 0:01:25]} 20... Qe7 {[%clk
0:02:18.6]} 21. Rde4 {[%clk 0:01:21.3]} 21... Qxe4 {[%clk 0:02:15.4]} 22. Rxe4
{[%clk 0:01:20]} 22... Rxe4 {[%clk 0:02:16.3]} 23. f3 {[%clk 0:01:11.6]} 23...
Re7 {[%clk 0:02:13.4]} 24. Qg5 {[%clk 0:01:10.6]} 24... Re1+ {[%clk 0:01:44.3]}
0-1

[Event "Late-Titled-Tuesday-Blitz-August-29-2023"]
[Site "Chess.com"]
[Date "2023.08.29"]
[Round "5"]
[White "rikchessmx"]
[Black "EstudiandoAjedrezRD"]
[Result "1-0"]
[WhiteElo "2433"]
[BlackElo "2218"]
[TimeControl "180+1"]
[EndTime "14:51:47 PDT"]
[Termination "rikchessmx won by checkmate"]

1. e4 {[%clk 0:03:00.9]} 1... d6 {[%clk 0:02:58.5]} 2. d4 {[%clk 0:03:01.2]}
2... Nf6 {[%clk 0:02:57.9]} 3. Nc3 {[%clk 0:03:02.1]} 3... e5 {[%clk 0:02:57.4]}
4. f3 {[%clk 0:03:03]} 4... Nc6 {[%clk 0:02:54.6]} 5. Nge2 {[%clk 0:03:02.1]}
5... Be7 {[%clk 0:02:35.2]} 6. Be3 {[%clk 0:03:01.5]} 6... O-O {[%clk
0:02:20.1]} 7. d5 {[%clk 0:03:01.3]} 7... Nb8 {[%clk 0:02:18.2]} 8. g4 {[%clk
0:03:01.7]} 8... Nfd7 {[%clk 0:02:12.8]} 9. Qd2 {[%clk 0:03:00.3]} 9... h6
{[%clk 0:02:08.8]} 10. O-O-O {[%clk 0:02:55.5]} 10... Bg5 {[%clk 0:02:08.7]} 11.
Kb1 {[%clk 0:02:55.9]} 11... Bxe3 {[%clk 0:02:08.6]} 12. Qxe3 {[%clk 0:02:56.8]}
12... Qg5 {[%clk 0:02:08.2]} 13. Qf2 {[%clk 0:02:57]} 13... Qe7 {[%clk
0:01:44.3]} 14. Ng3 {[%clk 0:02:55.2]} 14... Nf6 {[%clk 0:01:41.1]} 15. h4
{[%clk 0:02:53.4]} 15... Nh7 {[%clk 0:01:40.7]} 16. Bd3 {[%clk 0:02:45]} 16...
f6 {[%clk 0:01:35.3]} 17. Rdg1 {[%clk 0:02:44.1]} 17... a6 {[%clk 0:01:33.6]}
18. Nf5 {[%clk 0:02:43.9]} 18... Bxf5 {[%clk 0:01:31]} 19. gxf5 {[%clk
0:02:44.8]} 19... Nd7 {[%clk 0:01:27.5]} 20. Rg6 {[%clk 0:02:43.9]} 20... Kh8
{[%clk 0:01:26.4]} 21. Rhg1 {[%clk 0:02:43.7]} 21... Rg8 {[%clk 0:01:24.1]} 22.
Ne2 {[%clk 0:02:43.1]} 22... Ndf8 {[%clk 0:01:23.1]} 23. R6g2 {[%clk 0:02:40.5]}
23... Nd7 {[%clk 0:01:23.3]} 24. Ng3 {[%clk 0:02:40.3]} 24... g5 {[%clk
0:01:11]} 25. fxg6 {[%clk 0:02:37.6]} 25... Rxg6 {[%clk 0:01:11]} 26. Nf5 {[%clk
0:02:37.7]} 26... Rxg2 {[%clk 0:01:10.5]} 27. Rxg2 {[%clk 0:02:37.6]} 27... Qe8
{[%clk 0:00:40.4]} 28. Qg3 {[%clk 0:02:33.7]} 28... Qf7 {[%clk 0:00:33.4]} 29.
Nxh6 {[%clk 0:02:30.6]} 29... Qe7 {[%clk 0:00:31.9]} 30. Qg8+ {[%clk 0:02:23.3]}
30... Rxg8 {[%clk 0:00:31]} 31. Rxg8# {[%clk 0:02:24.2]} 1-0